bitfinex/quotes_ETHUSD_20250721
["timestamp","ask_amount","ask_price","bid_price","bid_amount"]
[1753112263855,4.25076883,3814.6,3814.1,0.02]
[1753112264013,0.03276883,3814.6,3814.1,0.02]
[1753112264211,4.24976711,3814.8,3814.1,0.02]
[1753112264414,2.62143812,3814.7,3814.1,0.02]
[1753112264751,4.24976883,3814.6,3814.1,0.02]
[1753112264927,2.62178176,3814.2,3814.1,0.02]
[1753112265259,7.65365403,3814.2,3814.1,0.02]
[1753112265470,8.63518176,3814.2,3814.1,0.02]
[1753112265773,1.1842847,3814.2,3814.1,1e-08]
[1753112265939,0.03276797,3814.7,3814.2,0.7929]
[1753112266140,0.03276196,3815.4,3814.3,0.01330756]
[1753112266461,0.50306196,3815.4,3814.2,0.7929]
[1753112266775,0.03276196,3815.4,3814.3,0.01330277]
[1753112267063,2.62082853,3815.6,3814.4,2.62164429]
[1753112267369,0.0327611,3815.5,3814.4,2.96442859]
[1753112267526,0.0327611,3815.5,3814.4,0.34278471]
[1753112267721,0.0327611,3815.5,3814.8,2.6213627]
[1753112267926,0.0327611,3815.5,3814.5,2.63486548]
[1753112268181,0.03275853,3815.8,3814.5,0.01330002]
[1753112268333,0.03275166,3816.6,3814.8,2.6213694]
[1753112268530,0.1304,3816.2,3815.9,2.62056045]
[1753112268724,0.7561,3816.8,3816.1,0.7773]
[1753112268725,0.03274994,3816.8,3816.1,0.7773]
[1753112268968,0.1504,3816.9,3816.6,2.62010602]
[1753112269137,0.02,3816.9,3816.6,2.75047812]
[1753112269336,0.02,3816.9,3816.3,0.1304]
[1753112269573,0.02,3816.9,3816.8,2.6199958]
[1753112269772,0.02,3816.9,3816.8,2.7636618]
[1753112270066,0.02,3816.9,3816.8,4.39507009]
[1753112270468,0.02,3816.9,3816.8,8.63007009]
[1753112270652,0.02,3816.9,3816.8,11.61680409]
[1753112270978,1e-08,3816.9,3816.8,11.61680409]
[1753112271472,1e-08,3816.9,3816.8,7.93180409]
[1753112271653,0.02,3817.9,3816.8,7.93180409]
[1753112271654,0.02,3817.9,3817.8,2.61930955]
[1753112271827,0.02,3817.9,3817.8,6.92932971]
[1753112272028,0.68826059,3818.7,3818.6,2.6187608]
[1753112272369,0.68826059,3818.8,3818.7,6.39159222]
[1753112272534,0.68826059,3818.8,3818.7,6.86532563]
[1753112272730,0.02,3818.9,3818.8,5.61862365]
[1753112272955,0.02,3818.9,3818.8,10.19695535]
[1753112273162,0.02,3818.9,3818.8,10.18372365]
[1753112273972,0.02,3818.9,3818.8,10.73372365]
[1753112274173,0.02,3818.9,3818.8,5.94872365]
[1753112274343,0.02,3818.9,3818.8,11.8966767]
[1753112274542,0.02,3818.9,3818.8,7.6616767]
[1753112274745,0.02,3818.9,3818.8,5.04305305]
[1753112274944,0.02,3818.9,3818.8,11.8936767]
[1753112275161,0.02,3818.9,3818.8,11.5635767]
[1753112275342,0.02,3818.9,3818.8,11.8936767]
[1753112275543,0.02,3818.9,3818.8,12.4436767]
[1753112275969,1e-08,3818.9,3818.8,13.2026767]
[1753112276579,1e-08,3818.9,3818.8,12.6506767]
[1753112277839,1e-08,3818.9,3818.8,8.4206767]
[1753112278070,1e-08,3818.9,3818.8,12.6466767]
[1753112278435,1e-08,3818.9,3818.8,8.4206767]
[1753112278639,1e-08,3818.9,3818.8,12.6456767]
[1753112279282,1e-08,3818.9,3818.8,12.6436767]
[1753112280394,1e-08,3818.9,3818.8,8.4206767]
[1753112280594,1e-08,3818.9,3818.8,0.759]
[1753112280800,1e-08,3818.9,3818.7,0.1304]
[1753112281355,1e-08,3818.9,3818.8,0.01323238]
[1753112281868,1e-08,3818.9,3818.7,0.1304]
[1753112282880,1e-08,3818.9,3818.8,0.01323238]
[1753112283057,1e-08,3818.9,3818.8,3.06821927]
[1753112283754,1e-08,3818.9,3818.8,7.27498689]
[1753112284654,1e-08,3818.9,3818.8,10.60508689]
[1753112285098,1e-08,3818.9,3818.8,10.60708689]
[1753112285455,0.00200001,3818.9,3818.8,10.60708689]
[1753112285684,0.00200001,3818.9,3818.8,6.05498689]
[1753112285901,0.00200001,3818.9,3818.8,5.63185535]
[1753112286203,0.00200001,3818.9,3818.8,9.85185535]
[1753112286490,0.00200001,3818.9,3818.8,9.83862365]
[1753112286700,0.00200001,3818.9,3818.8,10.16872365]
[1753112286906,1e-08,3818.9,3818.8,10.95152365]
[1753112287056,1e-08,3818.9,3818.8,13.6876548]
[1753112287771,0.02,3819.9,3818.8,13.6876548]
[1753112287772,1e-08,3819.9,3819.8,2.61793811]
[1753112287974,1e-08,3819.9,3819.8,10.75513811]
[1753112288185,1e-08,3819.9,3819.8,11.63523811]
[1753112289398,1e-08,3819.9,3819.8,11.84637415]
[1753112289597,1e-08,3819.9,3819.8,14.10887788]
[1753112289800,1e-08,3819.9,3819.8,13.55887788]
[1753112290099,1e-08,3819.9,3819.8,21.71951877]
[1753112290665,0.002,3821.1,3821.0,2.61711593]
[1753112290996,0.002,3821.1,3821.0,6.84730994]
[1753112291198,0.022,3821.9,3821.8,2.6165681]
[1753112291404,0.022,3821.9,3821.8,6.8335681]
[1753112291555,0.022,3821.9,3821.8,7.6163681]
[1753112291760,1e-08,3821.9,3821.8,11.0768681]
[1753112292213,1e-08,3821.9,3821.8,11.6268681]
[1753112292497,1e-08,3821.9,3821.8,13.13068941]
[1753112292904,1e-08,3821.9,3821.8,12.57968941]
[1753112293558,1e-08,3821.9,3821.8,13.12968941]
[1753112293864,1e-08,3821.9,3821.8,8.91368941]
[1753112294061,1e-08,3821.9,3821.8,8.36368941]
[1753112294286,1e-08,3821.9,3821.8,9.63502131]
[1753112294493,1e-08,3821.9,3821.8,9.63602131]
[1753112294666,1e-08,3821.9,3821.8,12.25258941]
[1753112294864,1e-08,3821.9,3821.8,12.58268941]
[1753112295662,1e-08,3821.9,3821.8,13.13268941]
[1753112295897,1e-08,3821.9,3821.8,12.58068941]
[1753112296269,1e-08,3821.9,3821.8,8.36368941]
[1753112296473,1e-08,3821.9,3821.8,12.58368941]
[1753112296869,1e-08,3821.9,3821.8,13.13368941]
[1753112297159,1e-08,3821.9,3821.8,17.0743303]
[1753112297388,1e-08,3821.9,3821.8,21.2943303]
[1753112297801,1e-08,3821.9,3821.8,20.7443303]
[1753112298004,1e-08,3821.9,3821.8,8.36368941]
[1753112298176,1e-08,3821.9,3821.8,12.58368941]
[1753112298363,1e-08,3821.9,3821.8,13.13368941]
[1753112298867,1e-08,3821.9,3821.8,8.91368941]
[1753112299405,1e-08,3821.9,3821.8,13.13268941]
[1753112300107,1e-08,3821.9,3821.8,8.03358941]
[1753112300480,1e-08,3821.9,3821.8,12.25258941]
[1753112300687,1e-08,3821.9,3821.8,12.25158941]
[1753112300876,1e-08,3821.9,3821.8,8.03358941]
[1753112301179,1e-08,3821.9,3821.8,12.25058941]
[1753112301704,1e-08,3821.9,3821.8,8.36368941]
[1753112301863,1e-08,3821.9,3821.8,12.25058941]
[1753112302305,1e-08,3821.9,3821.8,12.24858941]
[1753112302503,1e-08,3821.9,3821.8,12.57868941]
[1753112303001,1e-08,3821.9,3821.8,8.36368941]
[1753112303205,1e-08,3821.9,3821.8,12.24558941]
[1753112303391,1e-08,3821.9,3821.8,8.03358941]
[1753112303904,1e-08,3821.9,3821.8,4.25078941]
[1753112304115,1e-08,3821.9,3821.8,2.7469681]
[1753112304291,1e-08,3821.9,3821.8,6.9619681]
[1753112304495,0.43220001,3821.9,3821.8,6.9619681]
[1753112304695,0.43220001,3821.9,3821.8,2.7469681]
[1753112304895,0.43220001,3821.9,3821.8,6.97314841]
[1753112305194,1e-08,3821.9,3821.8,2.7469681]
[1753112305403,1e-08,3821.9,3821.8,3.71781541]
[1753112305606,0.43220001,3821.9,3821.8,6.97214841]
[1753112305780,0.43220001,3821.9,3821.8,6.9589681]
[1753112306309,0.43220001,3821.9,3821.8,4.3424]
[1753112306519,0.43220001,3821.9,3821.8,6.9589681]
[1753112306820,0.43220001,3821.9,3821.8,0.1304]
[1753112307109,0.7934,3821.8,3821.6,0.1304]
[1753112307323,0.4322,3821.7,3821.6,0.1304]
[1753112307522,0.4322,3821.7,3821.4,0.1304]
[1753112307674,1e-08,3821.9,3821.8,2.6165681]
[1753112307874,1e-08,3821.9,3821.8,2.7469681]
[1753112308179,1e-08,3821.9,3821.8,3.06470828]
[1753112308402,1e-08,3821.9,3821.8,3.07888859]
[1753112308585,1e-08,3821.9,3821.8,3.06570828]
[1753112308768,0.43220001,3821.9,3821.8,6.9579681]
[1753112309227,1e-08,3821.9,3821.8,6.9579681]
[1753112311001,1e-08,3821.9,3821.8,6.9539681]
[1753112311421,1e-08,3821.9,3821.8,9.9539681]
[1753112311602,1e-08,3821.9,3821.8,7.00503018]
[1753112311802,1e-08,3821.9,3821.8,11.20903018]
[1753112312014,1e-08,3821.9,3821.8,5.7479681]
[1753112312215,1e-08,3821.9,3821.8,9.96414841]
[1753112312525,1e-08,3821.9,3821.8,9.9509681]
[1753112312736,0.43220001,3821.9,3821.8,2.7479681]
[1753112312931,0.43220001,3821.9,3821.8,6.9509681]
[1753112313138,0.43220001,3821.9,3821.8,2.7479681]
[1753112313493,0.43220001,3821.9,3821.8,0.1314]
[1753112314033,1.18230001,3821.9,3821.8,0.1314]
[1753112314637,1.18230001,3821.9,3821.8,0.001]
[1753112315499,1.21500625,3821.9,3821.8,0.001]
[1753112316027,1e-08,3821.9,3821.8,2.6175681]
[1753112316197,1e-08,3821.9,3821.8,3.15417021]
[1753112316538,0.43220001,3821.9,3821.8,2.6175681]
[1753112316837,0.43220001,3821.9,3821.8,0.001]
[1753112317216,1.23730001,3821.9,3821.8,0.001]
[1753112317612,1.27000625,3821.9,3821.8,0.001]
[1753112318344,1.23730001,3821.9,3821.8,0.001]
[1753112318911,0.43220001,3821.9,3821.8,0.001]
[1753112319232,0.43220001,3821.9,3821.8,2.6175681]
[1753112319431,1e-08,3821.9,3821.8,2.6175681]
[1753112319638,1e-08,3821.9,3821.8,3.14099332]
[1753112320045,1e-08,3821.9,3821.8,10.33599332]
[1753112320342,1e-08,3821.9,3821.8,10.33999332]
[1753112320640,1e-08,3821.9,3821.8,11.44019332]
[1753112321685,1e-08,3822.7,3822.6,2.6160205]
[1753112321836,1e-08,3822.9,3822.8,2.61588364]
[1753112322036,1e-08,3822.9,3822.8,2.62904684]
[1753112325026,0.002,3823.5,3823.4,2.61547313]
[1753112325228,0.002,3823.5,3823.4,6.81962607]
[1753112325448,0.002,3823.5,3823.4,7.74999155]
[1753112326016,0.002,3823.5,3823.4,7.88039155]
[1753112326608,1e-08,3823.5,3823.4,11.66039155]
[1753112326902,1e-08,3823.5,3823.4,11.86009155]
[1753112327220,1e-08,3823.5,3823.4,11.52999155]
[1753112327416,1e-08,3823.5,3823.4,11.52699155]
[1753112327805,1e-08,3823.5,3823.4,11.85709155]
[1753112328359,1e-08,3823.9,3823.8,6.39299953]
[1753112328528,1e-08,3823.9,3823.8,11.49497401]
[1753112328723,1e-08,3823.9,3823.8,11.81092791]
[1753112329552,1e-08,3823.9,3823.8,7.29382791]
[1753112329722,1e-08,3823.9,3823.8,11.47882791]
[1753112330066,1e-08,3823.9,3823.8,5.61519953]
[1753112330269,1e-08,3823.9,3823.8,5.62834563]
[1753112330588,0.44420001,3823.9,3823.8,7.185]
[1753112330719,2.61524997,3823.8,3823.6,4.184]
[1753112331037,0.4422,3823.7,3823.4,4.183]
[1753112331368,0.00200001,3823.9,3823.5,4.19615191]
[1753112331735,0.4422,3823.8,3823.5,4.19615191]
[1753112331941,0.4422,3823.7,3823.6,4.182]
[1753112332142,2.61533824,3823.6,3822.6,0.26160205]
[1753112332332,0.4422,3823.7,3822.7,0.01316013]
[1753112332536,0.4422,3823.7,3822.8,3.0]
[1753112332734,0.4422,3823.7,3823.2,2.61560127]
[1753112332959,0.00200001,3823.9,3823.3,4.19315328]
[1753112333123,0.00200001,3823.9,3823.7,2.61526552]
[1753112333318,0.00200001,3823.9,3823.8,0.01314678]
[1753112333636,0.00200001,3823.9,3823.8,4.18]
[1753112333835,0.00200001,3823.9,3823.8,7.21319953]
[1753112334345,0.00200001,3823.9,3823.4,0.7548]
[1753112334537,0.00200001,3823.9,3823.8,2.61519953]
[1753112334857,0.00200001,3823.9,3823.8,6.80734563]
[1753112335057,0.00200001,3823.9,3823.8,6.79419953]
[1753112335433,0.44420001,3823.9,3823.8,4.179]
[1753112335638,1.19570001,3823.9,3823.0,3.0]
[1753112335838,0.00200001,3823.9,3823.8,2.61519953]
[1753112336034,0.00200001,3823.9,3823.8,6.79219953]
[1753112336238,0.44420001,3823.9,3823.8,6.79519953]
[1753112336437,0.44420001,3823.9,3823.8,6.79419953]
[1753112336621,0.00200001,3823.9,3823.8,6.79419953]
[1753112336855,0.00200001,3823.9,3823.8,6.92459953]
[1753112337162,0.44420001,3823.9,3823.8,4.3094]
[1753112337743,0.44420001,3823.9,3823.8,6.92459953]
[1753112337950,0.00200001,3823.9,3823.8,2.74559953]
[1753112338264,0.00200001,3823.9,3823.8,6.92359953]
[1753112339148,0.00200001,3823.9,3823.8,7.8774899]
[1753112339357,0.00200001,3823.9,3823.8,6.6994899]
[1753112339557,0.00200001,3823.9,3823.8,10.888636]
[1753112339769,0.00200001,3823.9,3823.8,10.8754899]
[1753112340338,0.00200001,3823.9,3823.8,9.92059953]
[1753112340533,0.00200001,3823.9,3823.8,3.1304]
[1753112340734,0.44420001,3823.9,3823.8,0.1304]
[1753112340983,2.61522224,3823.8,3823.3,0.1304]
[1753112341287,0.4422,3823.7,3823.4,4.179]
[1753112341891,2.6171413,3823.9,3823.4,4.179]
[1753112341892,0.4422,3823.6,3823.4,4.179]
[1753112342036,0.4422,3823.5,3823.4,4.179]
[1753112342232,0.00200001,3823.9,3823.4,4.179]
[1753112342462,0.4422,3823.8,3823.7,2.61522329]
[1753112342786,0.4422,3823.8,3823.7,0.1304]
[1753112342938,0.4422,3823.8,3823.7,4.3064]
[1753112343136,0.4422,3823.8,3823.5,4.179]
[1753112343447,0.4422,3823.8,3823.5,4.3094]
[1753112344047,0.4422,3823.7,3823.5,4.3094]
[1753112344291,2.64983559,3823.9,3823.5,4.3094]
[1753112344603,0.4422,3823.6,3823.5,4.3094]
[1753112344800,0.4422,3823.6,3823.1,2.61565607]
[1753112344801,3.05753633,3823.6,3823.2,4.177]
[1753112345002,3.37994154,3823.3,3823.2,0.1304]
[1753112345162,1.85362933,3823.3,3822.6,0.001]
[1753112345362,0.47489512,3823.2,3822.8,0.1304]
[1753112345575,3.09055227,3823.2,3822.8,0.1304]
[1753112345789,0.4422,3823.1,3822.8,0.1304]
[1753112345988,0.4422,3823.0,3822.8,0.1304]
[1753112346501,0.4422,3822.9,3822.8,0.1304]
[1753112347475,0.4422,3822.9,3822.8,2.74628364]
[1753112347813,1.2066,3823.3,3822.9,2.61577485]
[1753112348029,0.4422,3823.2,3822.8,0.1304]
[1753112348518,0.4422,3823.1,3822.8,0.1304]
[1753112348899,0.4422,3823.0,3822.9,2.61580978]
[1753112349100,0.03269084,3823.7,3822.9,0.53763792]
[1753112349101,0.4422,3823.6,3822.9,0.53763792]
[1753112349314,0.4422,3823.6,3823.2,2.61558794]
[1753112349494,0.8119,3823.7,3823.5,0.1304]
[1753112350189,0.4422,3823.6,3823.5,2.74578866]
[1753112350614,0.4422,3823.6,3823.5,0.1304]
[1753112351520,0.4422,3823.6,3823.5,2.74580473]
[1753112351735,0.4422,3823.6,3823.5,0.1304]
[1753112351899,0.4748917,3823.6,3822.6,0.001]
[1753112352103,3.22069479,3823.6,3823.0,0.1304]
[1753112352447,2.61548515,3823.4,3823.0,0.1304]
[1753112352592,0.03269426,3823.3,3823.0,0.1304]
[1753112352932,0.4422,3823.2,3823.0,0.1304]
[1753112353433,0.4422,3823.1,3823.0,0.1304]
[1753112355141,1.2745,3823.1,3823.0,0.1304]
[1753112357997,0.4422,3823.1,3823.0,0.1304]
[1753112358599,2.61581521,3822.9,3822.8,0.001]
[1753112358806,3.1985129,3822.9,3822.8,0.001]
[1753112359107,3.6405129,3822.9,3822.8,0.001]
[1753112359681,4.4323129,3822.9,3822.8,0.001]
[1753112359879,7.4323129,3822.9,3822.8,0.001]
[1753112360084,9.40606372,3822.9,3822.8,0.001]
[1753112360371,13.56206372,3822.9,3822.8,0.001]
[1753112360543,13.56206372,3822.9,3822.8,1e-08]
[1753112361083,13.56206372,3822.9,3821.4,0.001]
[1753112361084,3.97199964,3821.9,3821.4,0.001]
[1753112361373,8.81854758,3821.9,3821.4,0.001]
[1753112361573,8.78584134,3821.9,3821.4,0.001]
[1753112361801,9.22784134,3821.9,3821.4,0.001]
[1753112363567,8.56699964,3821.9,3821.4,0.001]
[1753112363878,8.56599964,3821.9,3821.4,0.001]
[1753112364174,5.3985,3821.9,3821.4,0.001]
[1753112364374,8.01499964,3821.9,3821.4,0.001]
[1753112365029,5.3985,3821.9,3821.4,0.001]
[1753112365232,5.43120624,3821.9,3821.4,2.61783658]
[1753112365458,5.56160624,3821.9,3821.4,0.001]
[1753112365727,4.31210624,3821.9,3821.4,0.001]
[1753112366347,4.31210624,3821.9,3821.4,2.61780108]
[1753112366671,2.61598893,3822.7,3821.4,2.61780108]
[1753112366672,7.038,3822.9,3822.0,2.61640001]
[1753112366829,0.16309854,3822.8,3822.2,0.1304]
[1753112367029,0.16309854,3822.8,3822.0,0.34322]
[1753112367030,4.15,3822.9,3822.5,0.1304]
[1753112367230,4.15,3822.9,3822.8,2.61588364]
[1753112367531,4.592,3822.9,3822.5,0.1304]
[1753112367872,0.47469854,3822.8,3822.5,2.7464839]
[1753112368247,0.442,3822.7,3822.5,0.1304]
[1753112368630,4.592,3822.6,3822.5,0.1304]
[1753112369135,5.3519,3822.6,3821.8,0.001]
[1753112369457,0.1304,3822.4,3821.8,0.1314]
[1753112369663,4.148,3822.3,3821.8,2.74794831]
[1753112369977,0.442,3822.2,3821.8,2.74794831]
[1753112370129,0.442,3822.2,3821.8,0.1314]
[1753112370130,0.442,3822.1,3821.8,0.1314]
[1753112370332,4.148,3822.0,3821.8,0.1314]
[1753112370574,0.47470624,3821.9,3821.8,0.001]
[1753112370789,3.81839964,3821.9,3821.8,0.001]
[1753112370936,3.98150588,3821.9,3821.8,0.001]
[1753112371127,4.53150588,3821.9,3821.8,0.001]
[1753112383819,7.53150588,3821.9,3821.8,0.001]
[1753112384103,9.83137208,3821.9,3821.8,0.001]
[1753112385278,3.91997351,3821.5,3821.4,0.001]
[1753112385483,8.07968317,3821.5,3821.4,0.001]
[1753112385695,8.48897351,3821.5,3821.4,0.001]
[1753112385892,11.48897351,3821.5,3821.4,0.001]
[1753112386091,11.96448336,3821.5,3821.4,0.001]
[1753112386400,11.96448336,3821.5,3821.1,1e-08]
[1753112386401,6.92017895,3821.2,3821.1,1e-08]
[1753112386592,14.40970529,3821.1,3821.0,1e-08]
[1753112386793,17.37878258,3821.1,3821.0,1e-08]
[1753112388024,4.36334744,3821.1,3821.0,1e-08]
[1753112388226,7.22186053,3821.1,3821.0,1e-08]
[1753112388518,2.61697289,3821.3,3821.0,1e-08]
[1753112388680,0.55,3821.1,3821.0,1e-08]
[1753112389280,3.16704744,3821.1,3821.0,1e-08]
[1753112389518,4.90471454,3821.1,3821.0,1e-08]
[1753112389718,5.71052763,3821.1,3821.0,1e-08]
[1753112389893,3.16759547,3820.3,3820.2,0.001]
[1753112390095,7.32831541,3820.3,3820.2,0.001]
[1753112390300,7.73869547,3820.3,3820.2,0.001]
[1753112390500,7.29559547,3820.3,3820.2,0.001]
[1753112390703,4.678,3820.3,3820.2,0.001]
[1753112390904,0.03271394,3821.0,3820.3,0.8041]
[1753112391112,0.1304,3820.7,3820.5,2.61745076]
[1753112391318,4.128,3820.6,3820.5,2.61745076]
[1753112392221,4.128,3820.6,3820.3,0.8041]
[1753112392422,0.03271823,3820.5,3820.3,0.8041]
[1753112392609,4.129,3820.4,3820.3,3.42169547]
[1753112393182,4.129,3820.4,3820.3,0.8041]
[1753112393602,4.81994581,3820.4,3820.2,0.001]
[1753112393795,0.16311994,3820.3,3820.2,0.001]
[1753112394434,4.129,3820.4,3820.2,0.001]
[1753112394629,4.126,3820.3,3820.2,0.001]
[1753112395813,4.126,3820.3,3820.2,2.61866399]
[1753112396428,4.126,3820.3,3820.2,0.001]
[1753112397518,4.126,3820.3,3820.2,2.61866399]
[1753112397888,4.124,3820.3,3820.2,3.87070774]
[1753112398122,4.124,3820.3,3820.2,7.33120774]
[1753112398531,4.124,3820.4,3820.3,5.61754512]
[1753112398894,4.124,3820.4,3820.2,0.9286]
[1753112399094,4.124,3820.4,3820.2,0.001]
[1753112399309,0.03271994,3820.3,3820.2,0.001]
[1753112400334,0.03271994,3820.3,3820.2,2.61866399]
[1753112400503,0.03271994,3820.3,3820.2,0.001]
[1753112401223,4.124,3820.4,3820.2,0.001]
[1753112401423,4.124,3820.4,3820.2,2.61864515]
[1753112401610,4.124,3820.4,3820.2,0.001]
[1753112401815,3.09341541,3820.3,3820.2,0.001]
[1753112402049,3.22381541,3820.3,3820.2,0.001]
[1753112402544,4.58131541,3820.3,3820.2,0.001]
[1753112405455,4.124,3820.3,3820.2,0.001]
[1753112405608,0.1304,3820.5,3820.2,2.6186638]
[1753112405808,4.124,3820.6,3820.2,0.1314]
[1753112406056,4.124,3820.6,3820.3,2.61755039]
[1753112406750,0.47581823,3820.5,3820.2,0.001]
[1753112406962,0.60621823,3820.5,3820.2,0.001]
[1753112407155,2.78058663,3820.5,3820.2,0.001]
[1753112407359,3.16759547,3820.3,3820.2,0.001]
[1753112407508,7.32431541,3820.3,3820.2,0.001]
[1753112407711,8.56449547,3820.3,3820.2,0.001]
[1753112408940,5.3969,3820.3,3820.2,0.001]
[1753112409290,8.59721541,3820.3,3820.2,0.001]
[1753112409572,9.2321191,3820.3,3820.2,0.001]
[1753112410770,19.0671,3820.3,3820.2,0.001]
[1753112411077,18.624,3820.3,3820.2,0.001]
[1753112411887,3.4431,3821.1,3820.3,0.8179]
[1753112412181,0.1304,3820.7,3820.3,0.8179]
[1753112412348,4.124,3820.6,3820.3,0.8179]
[1753112412535,0.03271823,3820.5,3820.2,0.001]
[1753112412734,4.2544,3820.4,3820.2,0.001]
[1753112412936,2.65031541,3820.3,3820.2,0.001]
[1753112413238,0.03271994,3820.3,3820.2,0.001]
[1753112414373,0.47581994,3820.3,3820.2,0.001]
[1753112414761,0.03271994,3820.3,3820.2,0.001]
[1753112415636,1.42802611,3820.3,3820.2,0.001]
[1753112416158,4.04562158,3820.3,3820.2,0.001]
[1753112417083,4.59562158,3820.3,3820.2,0.001]
[1753112417458,4.59562158,3820.3,3820.1,0.02]
[1753112417459,6.16766399,3820.2,3820.1,0.02]
[1753112417786,11.50426399,3820.2,3820.1,0.02]
[1753112417965,27.77342208,3820.2,3820.1,0.02]
[1753112418164,3.93433252,3820.1,3820.0,1e-08]
[1753112418371,14.58691202,3820.1,3820.0,1e-08]
[1753112418571,15.00019037,3820.1,3820.0,1e-08]
[1753112418775,29.50019037,3820.1,3820.0,1e-08]
[1753112419092,30.53911457,3820.1,3820.0,1e-08]
[1753112419243,2.61903514,3818.2,3818.1,0.02]
[1753112419449,6.16937815,3817.7,3816.5,0.7704]
[1753112419652,21.64427822,3817.7,3816.1,0.7904]
[1753112419849,36.557536,3817.7,3816.1,0.7904]
[1753112420049,38.32669409,3817.7,3816.1,0.7904]
[1753112420283,38.32669409,3817.7,3817.6,1e-08]
[1753112420590,34.20069409,3817.7,3817.6,1e-08]
[1753112420752,38.32569409,3817.7,3817.6,1e-08]
[1753112421070,19.621,3817.7,3817.6,1e-08]
[1753112421244,19.175,3817.7,3817.6,1e-08]
[1753112421448,21.24437815,3817.7,3817.6,1e-08]
[1753112421659,18.625,3817.7,3817.6,1e-08]
[1753112422586,25.24037815,3817.7,3817.6,1e-08]
[1753112422752,3.16972126,3817.2,3817.1,0.02]
[1753112422947,8.12166777,3817.2,3817.1,0.02]
[1753112423147,8.53492126,3817.2,3817.1,0.02]
[1753112423563,23.03492126,3817.2,3817.1,0.02]
[1753112424081,23.03392126,3817.2,3817.1,0.02]
[1753112425866,3.17040773,3816.2,3816.1,0.02]
[1753112426194,7.33016282,3816.2,3816.1,0.02]
[1753112426355,7.74340773,3816.2,3816.1,0.02]
[1753112426553,19.623,3816.2,3816.1,0.02]
[1753112426864,22.24340773,3816.2,3816.1,0.02]
[1753112427061,30.41635866,3816.2,3816.1,0.02]
[1753112427590,15.496,3816.2,3816.1,0.02]
[1753112427793,15.05,3816.2,3816.1,0.02]
[1753112427960,18.627,3816.2,3816.1,2.6404764]
[1753112428160,18.63,3816.2,3816.1,2.6404764]
[1753112428370,4.13,3816.2,3816.1,2.6404764]
[1753112428570,0.03274908,3816.9,3816.4,2.62022186]
[1753112428771,0.03274908,3816.9,3816.1,0.54620771]
[1753112428772,4.13,3816.8,3816.7,2.62004749]
[1753112429516,4.16274994,3816.8,3816.3,2.62027617]
[1753112429648,4.13,3816.8,3816.7,2.62006445]
[1753112429857,14.5,3817.3,3817.1,2.6197403]
[1753112430085,14.5,3817.3,3816.3,2.62033907]
[1753112430086,4.13,3817.2,3817.0,0.8324]
[1753112430289,0.03274737,3817.1,3816.7,2.62000952]
[1753112430507,0.03274737,3817.1,3816.6,2.62012786]
[1753112430683,4.13,3817.1,3817.0,2.61985852]
[1753112430907,0.03274308,3817.6,3817.4,2.61951643]
[1753112431218,4.131,3817.5,3817.4,2.61951643]
[1753112431523,1.54307497,3818.5,3817.5,0.7986]
[1753112431723,1.54307497,3818.5,3818.3,2.61896655]
[1753112431868,0.02,3818.9,3818.5,2.61882938]
[1753112432072,4.133,3818.7,3818.6,2.6187608]
[1753112432269,4.133,3818.7,3818.6,2.9488608]
[1753112432706,0.02,3818.9,3818.8,2.61862365]
[1753112432971,0.02,3818.9,3818.8,2.63185535]
[1753112433170,0.02,3818.9,3818.8,6.38665535]
[1753112433410,0.02,3818.9,3818.8,6.71675535]
[1753112433613,0.02,3818.9,3818.8,6.70352365]
[1753112433814,0.02,3818.9,3818.8,7.9614303]
[1753112434310,0.02,3818.9,3818.8,0.7548]
[1753112435016,0.02,3818.9,3818.4,0.812]
[1753112435215,0.05273193,3818.9,3818.4,0.812]
[1753112435420,0.02,3818.9,3818.6,2.61869224]
[1753112435570,0.02,3818.9,3818.5,0.3301]
[1753112435775,0.02,3818.9,3818.4,0.812]
[1753112436014,0.05273193,3818.9,3818.4,0.812]
[1753112436311,2.61870575,3818.7,3818.4,0.812]
[1753112436515,0.03273451,3818.6,3818.4,0.812]
[1753112436673,2.6514965,3818.6,3818.4,0.812]
[1753112437073,0.03273451,3818.6,3818.4,0.812]
[1753112438285,0.03273451,3818.6,3818.4,3.43083779]
[1753112438490,0.02,3818.9,3818.6,2.6187608]
[1753112438688,0.02,3818.9,3818.8,2.74902365]
[1753112438941,0.02,3818.9,3818.8,6.55205535]
[1753112439302,0.02,3818.9,3818.8,6.88215535]
[1753112439505,0.02,3818.9,3818.8,6.86892365]
[1753112439705,0.02,3818.9,3818.8,7.8176921]
[1753112439906,0.02,3819.9,3818.9,5.61855508]
[1753112440131,0.02,3819.9,3819.6,2.61802181]
[1753112440291,0.02,3819.9,3819.7,0.1304]
[1753112440510,0.02,3819.9,3819.8,3.42193811]
[1753112441511,0.02,3819.9,3819.8,4.0733059]
[1753112441725,0.02,3819.9,3819.8,4.4034059]
[1753112442347,0.02,3819.9,3819.8,0.804]
[1753112442496,0.02,3819.9,3819.7,0.1304]
[1753112442698,0.02,3819.9,3819.8,2.61793811]
[1753112443322,0.02,3819.9,3819.7,0.1304]
[1753112443496,0.02,3819.9,3819.8,2.61793811]
[1753112444032,0.02,3819.9,3819.7,0.1304]
[1753112444576,0.02,3819.9,3819.8,2.61793811]
[1753112444895,0.02,3819.9,3819.8,3.45457936]
[1753112445100,0.02,3819.9,3819.8,3.78467936]
[1753112446142,0.02,3819.9,3819.8,6.78467936]
[1753112446639,0.02,3819.9,3819.8,7.54997936]
[1753112447191,1e-08,3819.9,3819.8,7.54997936]
[1753112447811,1e-08,3819.9,3819.8,7.21987936]
[1753112448017,1e-08,3819.9,3819.8,6.71333811]
[1753112448317,1e-08,3819.9,3819.8,6.72655267]
[1753112449250,1e-08,3819.9,3819.8,6.39645267]